fUST/lending_fUST_20241129
["ID","MTS","AMOUNT","RATE_DAILY","PERIOD"]
[343668864,1732818633972,-302.69733596,0.0002525,2]
[343668865,1732818633985,-180.132526,0.00025331,2]
[343668866,1732818633994,-177.714128,0.00025331,2]
[343668867,1732818634004,-256.443488,0.00025331,2]
[343668868,1732818634014,-562.328055,0.00025331,2]
[343668869,1732818634023,-1779.176375,0.00025331,2]
[343668870,1732818634033,-172.095175,0.00025331,2]
[343668871,1732818634042,-2210.62530783,0.00025358,2]
[343668872,1732818634051,-300.0,0.000254,2]
[343668873,1732818634061,-345.78185,0.00025437,15]
[343668874,1732818634070,-182.551865,0.00025445,2]
[343668875,1732818634080,-500.0,0.00025479,2]
[343668876,1732818634093,-828.4582029,0.00025481,2]
[343668877,1732818634102,-302.72757545,0.000255,2]
[343668878,1732818634113,-302.69733596,0.000255,2]
[343668879,1732818634122,-1000.0,0.00025521,2]
[343668880,1732818634132,-1009.46472908,0.00025536,2]
[343668881,1732818634141,-1004.74113014,0.00025621,2]
[343668882,1732818634151,-1000.0,0.00025621,2]
[343668883,1732818634161,-1000.0,0.00025621,2]
[343668884,1732818634171,-1001.3331417,0.00025621,2]
[343668885,1732818634180,-1000.0,0.00025621,2]
[343668886,1732818634190,-1000.0,0.00025621,2]
[343668887,1732818634199,-182.551865,0.0002568,2]
[343668888,1732818634209,-302.72757545,0.0002575,2]
[343668889,1732818634219,-302.69733596,0.0002575,2]
[343668890,1732818634228,-500.0,0.00025753,2]
[343668891,1732818634238,-153.0,0.00025831,2]
[343668892,1732818634248,-182.551865,0.00025916,2]
[343668893,1732818634260,-500.26201751,0.00025973,2]
[343668894,1732818634269,-500.0,0.00025973,2]
[343668895,1732818634278,-1044.14718451,0.00026,30]
[343668896,1732818634288,-19900.0,0.00026,2]
[343668897,1732818634299,-408.0,0.00026,7]
[343668898,1732818634426,-529.75377146,0.00026,2]
[343668899,1732818634436,-1000.5,0.00026,31]
[343668900,1732818634446,-1000.5,0.00026,31]
[343668901,1732818634456,-1000.5,0.00026,31]
[343668902,1732818634465,-1000.5,0.00026,31]
[343668903,1732818634475,-1000.5,0.00026,31]
[343668904,1732818634485,-1000.5,0.00026,31]
[343668905,1732818634495,-150.5,0.00026,31]
[343668906,1732818634504,-158.7,0.00026,31]
[343668907,1732818634514,-1620.5,0.00026,30]
[343668908,1732818634524,-169.0,0.00026,2]
[343668909,1732818634534,-302.72757545,0.00026,2]
[343668910,1732818634544,-302.69733596,0.00026,2]
[343668911,1732818634553,-3177.89198264,0.00026,30]
[343668912,1732818634563,-151.05708931,0.00026014,2]
[343668913,1732818634572,-500.0,0.00026014,2]
[343668914,1732818634582,-553.47917138,0.00026014,2]
[343668915,1732818634594,-500.0,0.00026027,2]
[343668916,1732818634603,-182.551865,0.00026152,2]
[343668917,1732818634612,-2210.62530783,0.00026158,2]
[343668918,1732818634622,-169.0,0.00026164,2]
[343668919,1732818634631,-500.0,0.000262,2]
[343668920,1732818634640,-500.0,0.000262,2]
[343668921,1732818634650,-506.78410676,0.000262,2]
[343668922,1732818634659,-1500.0,0.00026222,2]
[343668923,1732818634669,-454.09136318,0.0002625,4]
[343668924,1732818634680,-454.04600394,0.0002625,4]
[343668925,1732818634689,-500.0,0.00026301,2]
[343668926,1732818634699,-660.0,0.00026384,2]
[343668927,1732818634708,-182.551865,0.00026387,2]
[343668928,1732818634718,-300.0,0.000264,2]
[343668929,1732818634727,-7458.94652043,0.0002649,2]
[343668930,1732818634736,-454.09136318,0.000265,4]
[343668931,1732818634746,-454.04600394,0.000265,4]
[343668932,1732818634755,-1000.0,0.00026521,2]
[343668933,1732818634764,-1500.0,0.00026522,2]
[343668934,1732818634774,-1001.33752168,0.00026562,2]
[343668935,1732818634783,-864.40585087,0.00026575,2]
[343668936,1732818634793,-1500.0,0.00026622,2]
[343668937,1732818634802,-290.3366943,0.00026622,2]
[343668938,1732818634812,-1002.24549035,0.00026622,2]
[343668939,1732818634824,-156.42407895,0.00026622,2]
[343668940,1732818634834,-182.551865,0.00026623,2]
[343668941,1732818634849,-420.0,0.0002672,2]
[343668942,1732818634859,-500.0,0.00026748,2]
[343668943,1732818634869,-1000.0,0.00026748,2]
[343668944,1732818634880,-454.09136318,0.0002675,4]
[343668945,1732818634890,-454.04600394,0.0002675,4]
[343668946,1732818634899,-182.551865,0.00026858,2]
[343668947,1732818634909,-2210.62530783,0.00026959,2]
[343668948,1732818634918,-250.0,0.00027,120]
[343668949,1732818634928,-15343.1594725,0.00027,10]
[343668950,1732818634937,-454.09136318,0.00027,4]
[343668951,1732818634947,-454.04600394,0.00027,4]
[343668952,1732818634957,-182.551865,0.00027094,2]
[343668953,1732818634966,-420.0,0.00027122,2]
[343668954,1732818634976,-169.0,0.00027185,2]
[343668955,1732818634985,-577.45682679,0.0002725,4]
[343668956,1732818634994,-454.04600394,0.0002725,4]
[343668957,1732818635004,-500.0,0.00027397,2]
[343668958,1732818635013,-503.78640556,0.00027397,3]
[343668959,1732818635022,-150.15,0.00027397,2]
[343668960,1732818635032,-300.0,0.000274,2]
[343668961,1732818635041,-150.0,0.00027455,2]
[343668962,1732818635050,-2000.0,0.0002752,5]
[343668963,1732818635059,-1500.0,0.00027522,5]
[343668964,1732818635069,-150.15,0.00027671,2]
[343668965,1732818635078,-2500.0,0.00027719,3]
[343668966,1732818635087,-1004.73095799,0.0002775,5]
[343668967,1732818635101,-2210.62530783,0.00027759,2]
[343668968,1732818635110,-2000.0,0.0002782,5]
[343668969,1732818635119,-1011.94942224,0.0002792,5]
[343668970,1732818635128,-150.15,0.00027945,2]
[343668971,1732818635137,-1134.44401317,0.00027999,3]
[343668972,1732818635147,-2500.0,0.00027999,3]
[343668973,1732818635156,-501.16,0.00028,2]
[343668974,1732818635166,-500.0,0.00028,120]
[343668975,1732818635175,-169.0,0.00028,120]
[343668976,1732818635185,-1955.18215808,0.00028,2]
[343668977,1732818635194,-1000.3,0.00028,3]
[343668978,1732818635203,-249.18,0.00028219,2]
[343668979,1732818635212,-300.0,0.000284,2]
[343668980,1732818635222,-173.0,0.00028544,2]
[343668981,1732818635231,-2210.62530783,0.0002856,2]
[343668982,1732818635242,-500.0,0.00028767,4]
[343668983,1732818635252,-8578.89336244,0.00028859,10]
[343668984,1732818635265,-300.0,0.0002889,20]
[343668985,1732818635274,-587.0,0.00028957,2]
[343668986,1732818635284,-808.22331011,0.00028978,2]
[343668987,1732818635294,-1000.0,0.00029,2]
[343668988,1732818635303,-259.06414202,0.00029019,2]
[343668989,1732818635313,-2500.0,0.00029056,5]
[343668990,1732818635322,-500.0,0.00029097,2]
[343668991,1732818635334,-160.0,0.000291,3]
[343668992,1732818635348,-2500.0,0.00029356,5]
[343668993,1732818635357,-300.0,0.000294,2]
[343668994,1732818635366,-505.90613259,0.00029422,2]
[343668995,1732818635375,-446.2,0.00029494,2]
[343668996,1732818635385,-808.22331011,0.00029571,2]
[343668997,1732818635394,-105628.50332382,0.0002961,2]
[343668998,1732818635403,-32359.79171158,0.0002961,2]
[343668999,1732818635412,-388.85,0.000297,31]
[343669000,1732818635422,-388.85,0.000297,31]
[343669001,1732818635433,-388.85,0.000297,31]
[343669002,1732818635444,-388.85,0.000297,31]
[343669003,1732818635453,-388.85,0.000297,31]
[343669004,1732818635463,-388.85,0.000297,31]
[343669005,1732818635473,-388.85,0.000297,31]
[343669006,1732818635482,-388.85,0.000297,31]
[343669007,1732818635491,-388.85,0.000297,31]
[343669008,1732818635500,-388.85,0.000297,31]
[343669009,1732818635510,-388.85,0.000297,31]
[343669010,1732818635519,-388.85,0.000297,31]
[343669011,1732818635528,-160.0,0.00029816,4]
[343669012,1732818635538,-587.0,0.00029834,2]
[343669013,1732818635548,-159.0,0.0003,2]
[343669014,1732818635557,-1084.36768,0.0003,7]
[343669015,1732818635566,-11105.57744466,0.0003,15]
[343669016,1732818635576,-798.98421488,0.0003,2]
[343669017,1732818635585,-3000.05,0.0003,7]
[343669018,1732818635598,-151.0,0.0003,120]
[343669019,1732818635607,-151.0,0.0003,120]
[343669020,1732818635617,-1500.0,0.0003,2]
[343669021,1732818635626,-500.0,0.0003,120]
[343669022,1732818635635,-8255.0,0.0003,120]
[343669023,1732818635645,-223.4885,0.0003,2]
[343669024,1732818635654,-205.0,0.0003,2]
[343669025,1732818635663,-500.0,0.00030136,6]
[343669026,1732818635672,-176.06717471,0.00030137,2]
[343669027,1732818635682,-2140.676935,0.00030137,120]
[343669028,1732818635695,-808.22331011,0.00030163,2]
[343669029,1732818635707,-2357669.66571892,0.00030261,10]
[343669030,1732818635720,-2887112.02833394,0.00030261,10]
[343669044,1732818637868,-528.5206622,0.00024907,2]
[343669045,1732818637879,-500.0,0.00024907,2]
[343669046,1732818637890,-547.33907351,0.00024907,2]
[343669047,1732818637900,-180.65524253,0.00024907,2]
[343669048,1732818637910,-553.61379384,0.00024907,2]
[343669049,1732818637921,-500.0,0.00024907,2]
[343669050,1732818637933,-500.0,0.00024907,2]
[343669051,1732818637943,-420.34331318,0.00024907,2]
[343669052,1732818637954,-688.5,0.00028077,15]
[343669053,1732818637966,-2210.62530783,0.0002936,2]
[343669054,1732818637978,-151.0,0.00030261,7]
[343669055,1732818637990,-28107.25678885,0.00030261,10]
[343669056,1732818638079,-283.72623247,0.00030261,10]
[343669057,1732818638213,-3653.95136506,0.00030261,10]
[343669058,1732818638229,-53864.14921191,0.00030261,10]
[343669059,1732818638242,-4341.25946455,0.00030261,10]
[343669165,1732818642992,-345.5,0.00028077,15]
[343669167,1732818643004,-378.20507407,0.00030161,2]
[343669170,1732818643019,-1832.42023376,0.00030161,2]
[343669172,1732818643033,-2405.52,0.00030251,10]
[343669174,1732818643046,-650.55,0.00030261,7]
[343669178,1732818643059,-312322.63375362,0.00030261,10]
[343669221,1732818643437,-1170.320278,0.00030261,10]
[343669223,1732818643452,-1935863.7106703,0.00030261,10]
[343669225,1732818643464,-1003.0,0.00030261,2]
[343669227,1732818643478,-949308.66684737,0.00030261,10]
[343669229,1732818643490,-564212.08993673,0.00030261,10]
[343669231,1732818643501,-531733.8437552,0.00030261,10]
[343669232,1732818643521,-2242.47030413,0.00030261,10]
[343669233,1732818644445,-6357.73280428,0.00030261,10]
[343669242,1732818645888,-1068.4611726,0.00030261,2]
[343669243,1732818679195,82.41292877,0.0002076,2]
[343669244,1732818679217,82.32107123,0.0002076,2]
[343669245,1732818724160,164.612091,0.00013973,2]
[343669248,1732819205795,5000.0,0.00017138,2]
[343669249,1732819206087,5000.0,0.00017138,2]
[343669250,1732819206389,5000.0,0.00017138,2]
[343669251,1732819206695,5000.0,0.00017138,2]
[343669252,1732819207026,5000.0,0.00017138,2]
[343669253,1732819572007,165.068785,0.00013973,2]
[343669254,1732819651138,-355.5,0.00023651,2]
[343669255,1732819651161,-165.109861,0.0002389,2]
[343669256,1732819651183,-251.633215,0.00023929,2]
[343669257,1732819651206,-208.3685558,0.00023929,2]
[343669258,1732819651229,-300.0,0.00024085,2]
[343669259,1732819651252,-300.0,0.00024085,2]
[343669260,1732819651277,-1643.30935669,0.00024086,2]
[343669261,1732819653118,-2292.88264253,0.00024086,2]
[343669281,1732819832201,-300.0,0.00024085,2]
[343669282,1732819832212,-300.0,0.00024085,2]
[343669283,1732819832223,-507.82706126,0.00024086,2]
[343669284,1732819832236,-5294.51748475,0.00024086,2]
[343669285,1732819832324,-355.5,0.00024086,2]
[343669286,1732819832338,-413.34023013,0.00024086,2]
[343669287,1732819832352,-4200.84831304,0.00024086,2]
[343669288,1732819832363,-213.61984095,0.000241,2]
[343669289,1732819832373,-244.86451,0.00024124,2]
[343669291,1732819832383,-244.86451,0.00024426,2]
[343669292,1732819832545,-187.0,0.000246,2]
[343669293,1732819832557,-210.9,0.000246,2]
[343669294,1732819832567,-226.541501,0.000246,2]
[343669295,1732819832577,-500.0,0.00024657,3]
[343669296,1732819832589,-500.0,0.00024657,3]
[343669297,1732819832599,-458.92103715,0.00024657,3]
[343669298,1732819832609,-598.8,0.00024657,3]
[343669299,1732819832622,-500.0,0.00024657,3]
[343669300,1732819832632,-500.0,0.00024657,3]
[343669301,1732819832641,-500.0,0.00024657,3]
[343669302,1732819832652,-500.0,0.00024657,3]
[343669303,1732819832663,-500.0,0.00024657,3]
[343669304,1732819832674,-385.03430256,0.00024657,3]
[343669305,1732819832685,-500.0,0.00024657,3]
[343669306,1732819832695,-1212.91,0.00024657,3]
[343669307,1732819832704,-500.0,0.00024657,3]
[343669308,1732819832714,-200.0,0.00024658,15]
[343669309,1732819832724,-1889.37,0.000247,2]
[343669310,1732819832735,-244.86451,0.00024728,2]
[343669311,1732819832745,-151.0,0.00024759,7]
[343669312,1732819832755,-151.0,0.00024759,7]
[343669313,1732819832765,-500.0,0.00024825,2]
[343669314,1732819832775,-151.653503,0.00024829,7]
[343669315,1732819832785,-151.0,0.00024829,7]
[343669316,1732819832795,-500.0,0.00024843,3]
[343669317,1732819832804,-500.0,0.00024843,3]
[343669318,1732819832814,-500.0,0.00024843,3]
[343669319,1732819832824,-500.0,0.00024843,3]
[343669320,1732819832833,-640.17790076,0.00024843,3]
[343669321,1732819832844,-500.0,0.00024843,3]
[343669322,1732819832855,-160.382836,0.00024844,7]
[343669323,1732819832864,-425.50825738,0.00024941,2]
[343669324,1732819832874,-500.0,0.00024958,3]
[343669325,1732819832883,-152.82265004,0.00024958,3]
[343669326,1732819832892,-500.0,0.00024958,3]
[343669327,1732819832902,-500.0,0.00024958,3]
[343669328,1732819832912,-500.0,0.00024958,3]
[343669329,1732819832921,-156.71238717,0.00024958,3]
[343669330,1732819832933,-276.0,0.00025,2]
[343669331,1732819832943,-244.86451,0.00025029,2]
[343669332,1732819832952,-655.156,0.00025041,2]
[343669333,1732819832961,-2378.0,0.00025041,2]
[343669334,1732819832971,-1104.0,0.00025041,2]
[343669335,1732819832980,-1212.91,0.00025228,3]
[343669336,1732819832989,-500.0,0.00025228,3]
[343669337,1732819832999,-449.46997263,0.00025229,2]
[343669338,1732819833008,-288.536,0.00025229,2]
[343669339,1732819833018,-5339.029,0.00025229,2]
[343669340,1732819833027,-244.86451,0.00025331,2]
[343669341,1732819833038,-179.799,0.00025331,9]
[343669342,1732819833047,-1000.0,0.00025373,2]
[343669343,1732819833057,-300.0,0.000254,2]
[343669344,1732819833067,-161.0,0.00026,2]
[343669345,1732819833077,-420.0,0.00026117,2]
[343669346,1732819833087,-1154.38738944,0.00026375,2]
[343669347,1732819833097,-660.0,0.00026384,2]
[343669348,1732819833107,-300.0,0.000264,2]
[343669349,1732819833117,-420.0,0.00026494,2]
[343669350,1732819833127,-616.0,0.000267,2]
[343669351,1732819833137,-161.0,0.00027185,2]
[343669352,1732819833147,-500.0,0.00027397,2]
[343669353,1732819833156,-300.0,0.000274,2]
[343669354,1732819833166,-531.0,0.00028041,2]
[343669355,1732819833178,-2378.0,0.00028041,2]
[343669356,1732819833188,-1104.0,0.00028041,2]
[343669357,1732819833198,-587.0,0.0002832,2]
[343669358,1732819833209,-300.0,0.000284,2]
[343669359,1732819833219,-500.0,0.00028766,3]
[343669360,1732819833231,-500.0,0.00028766,3]
[343669361,1732819833241,-500.0,0.00028767,4]
[343669362,1732819833251,-587.0,0.00029143,2]
[343669363,1732819833262,-9385.90416658,0.00029156,2]
[343669364,1732819833272,-1212.91,0.00029157,3]
[343669365,1732819833281,-500.0,0.00029157,3]
[343669366,1732819833291,-500.0,0.00029224,3]
[343669367,1732819833302,-554.87,0.00029224,3]
[343669368,1732819833311,-9385.90416658,0.00029399,2]
[343669369,1732819833321,-300.0,0.000294,2]
[343669370,1732819833331,-500.0,0.00029405,3]
[343669371,1732819833341,-500.0,0.00029405,3]
[343669372,1732819833352,-212.8933161,0.00029452,30]
[343669373,1732819833361,-257.8715337,0.00029452,30]
[343669374,1732819833371,-258.2031212,0.00029452,30]
[343669375,1732819833381,-212.8933161,0.00029452,30]
[343669376,1732819833391,-304.9727228,0.00029452,30]
[343669377,1732819833401,-153.0,0.00029452,30]
[343669378,1732819833411,-153.0,0.00029452,30]
[343669379,1732819833421,-212.8933161,0.00029452,30]
[343669380,1732819833432,-304.9727228,0.00029452,30]
[343669381,1732819833443,-212.8933161,0.00029452,30]
[343669382,1732819833453,-153.0,0.00029452,30]
[343669383,1732819833463,-153.0,0.00029452,30]
[343669384,1732819833472,-212.8933161,0.00029452,30]
[343669385,1732819833482,-306.3390829,0.00029452,30]
[343669386,1732819833492,-212.8933161,0.00029452,30]
[343669387,1732819833502,-212.8933161,0.00029452,30]
[343669388,1732819833511,-212.8933161,0.00029452,30]
[343669389,1732819833520,-212.8933161,0.00029452,30]
[343669390,1732819833530,-500.0,0.00029615,3]
[343669391,1732819833540,-9385.90416658,0.00029643,2]
[343669392,1732819833550,-151.0,0.00029778,7]
[343669393,1732819833559,-151.0,0.00029778,7]
[343669394,1732819833569,-1212.91,0.00029796,3]
[343669395,1732819833579,-500.0,0.00029796,3]
[343669396,1732819833589,-150.0,0.00029909,2]
[343669397,1732819833599,-1990.85,0.00029968,10]
[343669398,1732819833609,-500.0,0.00029969,3]
[343669399,1732819833622,-250.84,0.00029969,3]
[343669400,1732819833632,-1503.37,0.00029978,10]
[343669401,1732819833642,-2866.82,0.00029978,10]
[343669402,1732819833652,-2389.02,0.00029978,10]
[343669403,1732819833662,-500.0,0.00029987,2]
[343669404,1732819833672,-500.0,0.00029987,2]
[343669405,1732819833685,-500.0,0.00029987,2]
[343669406,1732819833695,-503.59130531,0.00029987,2]
[343669407,1732819833705,-500.0,0.00029987,2]
[343669408,1732819833714,-500.0,0.00029987,2]
[343669409,1732819833724,-500.0,0.00029987,2]
[343669410,1732819833735,-500.0,0.00029987,2]
[343669411,1732819833744,-500.0,0.00029987,2]
[343669412,1732819833754,-296.53943729,0.00029987,2]
[343669413,1732819833763,-500.0,0.00029987,2]
[343669414,1732819833773,-500.0,0.00029987,2]
[343669415,1732819833783,-1212.91,0.00029989,3]
[343669416,1732819833793,-500.0,0.00029989,3]
[343669417,1732819833803,-274.0,0.0003,2]
[343669418,1732819833812,-185.57342523,0.00030061,2]
[343669419,1732819833821,-185.57342521,0.00030081,2]
[343669420,1732819833831,-447.16,0.000301,31]
[343669421,1732819833842,-447.16,0.000301,31]
[343669422,1732819833855,-447.16,0.000301,31]
[343669423,1732819833865,-447.16,0.000301,31]
[343669424,1732819833875,-447.16,0.000301,31]
[343669425,1732819833885,-447.16,0.000301,31]
[343669426,1732819833895,-447.16,0.000301,31]
[343669427,1732819833904,-447.16,0.000301,31]
[343669428,1732819833913,-447.16,0.000301,31]
[343669429,1732819833923,-447.16,0.000301,31]
[343669430,1732819833937,-447.16,0.000301,31]
[343669431,1732819833947,-447.16,0.000301,31]
[343669432,1732819833957,-829.372947,0.000301,2]
[343669433,1732819833967,-185.57342521,0.00030101,2]
[343669434,1732819833978,-500.0,0.00030111,3]
[343669435,1732819833988,-1212.91,0.0003012,3]
[343669436,1732819833998,-500.0,0.0003012,3]
[343669437,1732819834009,-5657.56317084,0.00030121,2]
[343669438,1732819834018,-185.57342521,0.00030121,2]
[343669439,1732819834032,-9385.90416658,0.00030131,2]
[343669440,1732819834042,-500.0,0.00030136,6]
[343669441,1732819834052,-500.0,0.00030136,3]
[343669442,1732819834062,-170.29500614,0.00030137,2]
[343669443,1732819834071,-2644.836935,0.00030137,120]
[343669444,1732819834081,-500.0,0.0003016,3]
[343669445,1732819834091,-1212.91,0.0003016,3]
[343669446,1732819834101,-500.0,0.0003016,3]
[343669447,1732819834110,-383.13735146,0.0003016,2]
[343669448,1732819834121,-387.52965568,0.0003016,2]
[343669449,1732819834133,-500.0,0.0003016,2]
[343669450,1732819834143,-369.96446354,0.0003016,2]
[343669451,1732819834153,-344.24031922,0.0003016,2]
[343669452,1732819834162,-500.0,0.0003016,2]
[343669453,1732819834172,-500.0,0.00030161,3]
[343669454,1732819834184,-166.66,0.00030161,3]
[343669455,1732819834195,-1212.91,0.00030161,3]
[343669456,1732819834204,-1212.91,0.00030161,3]
[343669457,1732819834215,-1212.91,0.00030161,3]
[343669458,1732819834225,-1212.91,0.00030161,3]
[343669459,1732819834235,-1212.91,0.00030161,3]
[343669460,1732819834245,-1212.91,0.00030161,3]
[343669461,1732819834254,-1212.91,0.00030161,3]
[343669462,1732819834265,-1212.91,0.00030161,3]
[343669463,1732819834275,-1212.91,0.00030161,3]
[343669464,1732819834285,-1212.91,0.00030161,3]
[343669465,1732819834295,-1212.91,0.00030161,3]
[343669466,1732819834304,-281.2047976,0.00030161,3]
[343669467,1732819834314,-230000.0,0.00030161,2]
[343669468,1732819834324,-666.0,0.00030161,2]
[343669469,1732819834333,-1212.91,0.00030217,3]
[343669470,1732819834343,-1212.91,0.00030218,3]
[343669471,1732819834353,-1212.91,0.00030218,3]
[343669472,1732819834363,-1212.91,0.00030218,3]
[343669473,1732819834374,-1212.91,0.00030218,3]
[343669474,1732819834384,-1212.91,0.00030218,3]
[343669475,1732819834394,-4706.46140003,0.00030219,14]
[343669476,1732819834404,-151.0,0.00030219,7]
[343669477,1732819834415,-151.0,0.00030219,7]
[343669478,1732819834425,-151.0,0.00030219,7]
[343669479,1732819834437,-151.0,0.00030219,7]
[343669480,1732819834447,-151.0,0.00030219,7]
[343669481,1732819834457,-198.365696,0.00030219,7]
[343669482,1732819834468,-152.795366,0.00030219,7]
[343669483,1732819834478,-151.0,0.00030219,7]
[343669484,1732819834488,-151.0,0.00030219,7]
[343669485,1732819834498,-151.0,0.00030219,7]
[343669486,1732819834508,-249.049424,0.00030219,7]
[343669487,1732819834518,-152.275274,0.00030219,7]
[343669488,1732819834528,-151.0,0.00030219,7]
[343669489,1732819834538,-151.735993,0.00030219,7]
[343669490,1732819834548,-151.0,0.00030219,7]
[343669491,1732819834558,-151.0,0.00030219,7]
[343669492,1732819834567,-151.0,0.00030219,7]
[343669493,1732819834575,-151.0,0.00030219,7]
[343669494,1732819834585,-151.0,0.00030219,7]
[343669495,1732819834595,-151.0,0.00030219,7]
[343669496,1732819834606,-151.0,0.00030219,7]
[343669497,1732819834616,-151.0,0.00030219,7]
[343669498,1732819834626,-240.403096,0.00030219,7]
[343669499,1732819834636,-151.0,0.00030219,7]
[343669500,1732819834645,-151.624814,0.00030219,7]
[343669501,1732819834655,-151.0,0.00030219,7]
[343669502,1732819834665,-151.0,0.00030219,7]
[343669503,1732819834674,-151.0,0.00030219,7]
[343669504,1732819834689,-151.0,0.00030219,7]
[343669505,1732819834700,-219.867312,0.00030219,7]
[343669506,1732819834710,-151.0,0.00030219,7]
[343669507,1732819834719,-156.314747,0.00030219,7]
[343669508,1732819834729,-151.0,0.00030219,7]
[343669509,1732819834739,-151.0,0.00030219,7]
[343669510,1732819834748,-151.0,0.00030219,7]
[343669511,1732819834758,-151.0,0.00030219,7]
[343669512,1732819834767,-151.0,0.00030219,7]
[343669513,1732819834776,-151.0,0.00030219,7]
[343669514,1732819834785,-2581.72521421,0.00030221,2]
[343669515,1732819834795,-424.52464908,0.00030221,2]
[343669516,1732819834805,-449.46997263,0.00030221,7]
[343669517,1732819834815,-449.46997263,0.00030221,7]
[343669518,1732819834826,-483364.47561812,0.00030221,10]
[343669519,1732819834836,-1303081.70116599,0.00030221,10]
[343669520,1732819834845,-624073.82200737,0.00030221,10]
[343669530,1732819838240,-152.0,0.00024686,2]
[343669531,1732819838251,-425.50825733,0.00025681,2]
[343669532,1732819838261,-500.0,0.00029987,2]
[343669533,1732819838272,-500.0,0.00029987,2]
[343669534,1732819838281,-500.0,0.00029987,2]
[343669535,1732819838290,-502.99447691,0.00029987,2]
[343669536,1732819838301,-500.0,0.00029987,2]
[343669537,1732819838312,-82031.64308382,0.00030221,10]
[343669538,1732819838358,-612.04779,0.00030221,10]
[343669577,1732819843161,-425.50825733,0.00026421,2]
[343669580,1732819843171,-814.10182134,0.00030221,10]
[343669615,1732819846061,-425.50825733,0.00027161,2]
[343669617,1732819846071,-212.8933161,0.00029452,30]
[343669619,1732819846080,-424989.72333932,0.00030221,10]
[343669621,1732819846130,-75.41844096,0.00030221,10]
[343669622,1732819851446,1000.0,0.00025,120]
[343669626,1732820250472,257.0,0.00026,60]
[343669627,1732820258834,164.894922,0.00013973,2]
[343669631,1732820757128,-247.153435,0.00024124,2]
[343669632,1732820757149,-207.07661249,0.00024426,2]
[343669633,1732820838092,-40.07682251,0.00024426,2]
[343669634,1732820838115,-500.0,0.00024657,3]
[343669635,1732820838136,-1700.44,0.000247,2]
[343669636,1732820838168,-247.153435,0.00024728,2]
[343669637,1732820838196,-247.153435,0.00025029,2]
[343669638,1732820838219,-551.45046192,0.00025041,2]
[343669639,1732820850095,-399.38053808,0.00025041,2]
[343669640,1732820850116,-712.032,0.00025041,2]
[343669641,1732820850137,-554.87,0.00025228,3]
[343669642,1732820850157,-247.153435,0.00025331,2]
[343669643,1732820850178,-300.0,0.00026847,2]
[343669644,1732820850199,-300.0,0.00026848,2]
[343669645,1732820850221,-624.60860883,0.00026848,2]
[343669646,1732820913113,164.73208,0.00013973,2]
[343669647,1732821003399,1530.39,0.000247,2]
[343669655,1732821032403,-197.5651082,0.00027934,2]
[343669657,1732821032413,-620.0,0.00028,2]
[343669659,1732821032424,-59.9879418,0.00028532,2]
[343669662,1732821032436,-441.16836,0.00028532,2]
[343669701,1732821038506,-154.1287562,0.00028532,2]
[343669702,1732821038516,-215.7000235,0.0002863,30]
[343669703,1732821038528,-160.0,0.00029259,3]
[343669704,1732821038539,-436.0,0.000294,2]
[343669705,1732821038548,-300.0,0.00029877,2]
[343669706,1732821038559,-300.0,0.00029877,2]
[343669707,1732821038570,-51.13399823,0.00029877,2]